{"text_format":"1","workbook":"xlsx","n_sheets":1,"sheets":["Blank AdWords Campaign"],"not_rendered":{"charts":0,"images":0,"macros":1,"external_links":0,"defined_names":1,"comments":1,"pivot_tables":0},"unopened":[],"bounds":{"document_bytes":16777216,"sheet_cells":100000,"rows_first":2000,"rows_last":500,"rows_between":2000,"halvings":0,"cell_chars":16384,"cell_head_chars":4096},"cells_cut":0,"cells_raw":0,"read":"whole","date_system":"1900"}

{"sheet":"Blank AdWords Campaign","index":0,"n_rows":19,"n_cols":26,"rows_kept":19,"cut":false,"hidden":false,"merged":[[8,3,10,3],[2,1,2,3],[1,1,1,8],[4,1,4,2],[3,1,3,2],[3,3,4,3],[3,4,4,4],[5,1,6,2]]}
[]
[null,"ADWORDS AD COPY CREATOR TEMPLATE"]
[null,null,null,null,null,null,null,null,null,"Campaign","Ad Group","Keyword","Headline 1          35 chr","LEN 35","Headline 2          35 chr","LEN 35","Description Line          80 chr","LEN 80","Display URL","/","Path 1      15 chr","LEN 15","/","Path 2       15 chr","LEN 15","Concatenated Display URL"]
[null,"CAMPAIGN: Campaign Name 1",null,"ADWORDS EXTENDED AD COPY","LEN",null,null,null,null,"Campaign Name 1","Ad Group 1","Keyword 1","Headline Line I 35 chr 1",{"$f":"LEN(M4)","v":24},"Headline Line II 35 chr 1",{"$f":"LEN(O4)","v":25},"Description Line. Upto 80 characters allowed now. 1",{"$f":"LEN(Q4)","v":51},"www.yourdomainname.com",{"$f":"IF(U4 <> \"\", \"/\", \"\")","v":"/"},"path1-15chr1",{"$f":"LEN(U4)","v":12},{"$f":"IF(X4 <> \"\", \"/\", \"\")","v":"/"},"path2-15chr1",{"$f":"LEN(X4)","v":12},{"$f":"CONCATENATE((S4 & T4 &U4 & W4 & X4))","v":"www.yourdomainname.com/path1-15chr1/path2-15chr1"}]
[null,"AD GROUP: Ad Group 1",null,null,null,null,null,null,null,"Campaign Name 2","Ad Group 2","Keyword 2","Headline Line I 35 chr 2",{"$f":"LEN(M5)","v":24},"Headline Line II 35 chr 2",{"$f":"LEN(O5)","v":25},"Description Line. Upto 80 characters allowed now. 2",{"$f":"LEN(Q5)","v":51},"www.yourdomainname.com",{"$f":"IF(U5 <> \"\", \"/\", \"\")","v":"/"},"path1-15chr2",{"$f":"LEN(U5)","v":12},{"$f":"IF(X5 <> \"\", \"/\", \"\")","v":"/"},"path2-15chr2",{"$f":"LEN(X5)","v":12},{"$f":"CONCATENATE((S5 & T5 &U5 & W5 & X5))","v":"www.yourdomainname.com/path1-15chr2/path2-15chr2"}]
[null,"KEYWORD: Keyword 1",null,"Headline Line I 35 chr 1",{"$f":"LEN(D6)","v":24},null,null,null,null,"Campaign Name 3","Ad Group 3","Keyword 3","Headline Line I 35 chr 3",24,"Headline Line II 35 chr 3",25,"Description Line. Upto 80 characters allowed now. 3",51,"www.yourdomainname.com","/","path1-15chr3",12,"/","path2-15chr3",12,"www.yourdomainname.com/path1-15chr3/path2-15chr3"]
[null,null,null,"Headline Line II 35 chr 1",{"$f":"LEN(D7)","v":25},null,null,null,null,"Campaign Name 4","Ad Group 4","Keyword 4","Headline Line I 35 chr 4",24,"Headline Line II 35 chr 4",25,"Description Line. Upto 80 characters allowed now. 4",51,"www.yourdomainname.com","/","path1-15chr4",12,"/","path2-15chr4",12,"www.yourdomainname.com/path1-15chr4/path2-15chr4"]
[null,null,null,"www.yourdomainname.com/path1-15chr1/path2-15chr1",{"$f":"LEN(D8)","v":48},null,null,null,null,"Campaign Name 5","Ad Group 5","Keyword 5","Headline Line I 35 chr 5",24,"Headline Line II 35 chr 5",25,"Description Line. Upto 80 characters allowed now. 5",51,"www.yourdomainname.com","/","path1-15chr5",12,"/","path2-15chr5",12,"www.yourdomainname.com/path1-15chr5/path2-15chr5"]
[null,null,null,"Description Line. Upto 80 characters allowed now. 1",{"$f":"LEN(D9)","v":51},null,null,null,null,"Campaign Name 6","Ad Group 6","Keyword 6","Headline Line I 35 chr 6",24,"Headline Line II 35 chr 6",25,"Description Line. Upto 80 characters allowed now. 6",51,"www.yourdomainname.com","/","path1-15chr6",12,"/","path2-15chr6",12,"www.yourdomainname.com/path1-15chr6/path2-15chr6"]
[null,null,null,null,null,null,null,null,null,"Campaign Name 7","Ad Group 7","Keyword 7","Headline Line I 35 chr 7",24,"Headline Line II 35 chr 7",25,"Description Line. Upto 80 characters allowed now. 7",51,"www.yourdomainname.com","/","path1-15chr7",12,"/","path2-15chr7",12,"www.yourdomainname.com/path1-15chr7/path2-15chr7"]
[null,null,null,null,null,null,null,null,null,"Campaign Name 8","Ad Group 8","Keyword 8","Headline Line I 35 chr 8",24,"Headline Line II 35 chr 8",25,"Description Line. Upto 80 characters allowed now. 8",51,"www.yourdomainname.com","/","path1-15chr8",12,"/","path2-15chr8",12,"www.yourdomainname.com/path1-15chr8/path2-15chr8"]
[null,null,null,null,null,null,null,null,null,"Campaign Name 9","Ad Group 9","Keyword 9","Headline Line I 35 chr 9",24,"Headline Line II 35 chr 9",25,"Description Line. Upto 80 characters allowed now. 9",51,"www.yourdomainname.com","/","path1-15chr9",12,"/","path2-15chr9",12,"www.yourdomainname.com/path1-15chr9/path2-15chr9"]
[null,null,null,null,null,null,null,null,null,"Campaign Name 10","Ad Group 10","Keyword 10","Headline Line I 35 chr 10",25,"Headline Line II 35 chr 10",26,"Description Line. Upto 80 characters allowed now. 10",52,"www.yourdomainname.com","/","path1-15chr10",13,"/","path2-15chr10",13,"www.yourdomainname.com/path1-15chr10/path2-15chr10"]
[null,null,null,null,null,null,null,null,null,"Campaign Name 11","Ad Group 11","Keyword 11","Headline Line I 35 chr 11",25,"Headline Line II 35 chr 11",26,"Description Line. Upto 80 characters allowed now. 11",52,"www.yourdomainname.com","/","path1-15chr11",13,"/","path2-15chr11",13,"www.yourdomainname.com/path1-15chr11/path2-15chr11"]
[null,null,null,null,null,null,null,null,null,"Campaign Name 12","Ad Group 12","Keyword 12","Headline Line I 35 chr 12",25,"Headline Line II 35 chr 12",26,"Description Line. Upto 80 characters allowed now. 12",52,"www.yourdomainname.com","/","path1-15chr12",13,"/","path2-15chr12",13,"www.yourdomainname.com/path1-15chr12/path2-15chr12"]
[null,null,null,null,null,null,null,null,null,"Campaign Name 13","Ad Group 13","Keyword 13","Headline Line I 35 chr 13",25,"Headline Line II 35 chr 13",26,"Description Line. Upto 80 characters allowed now. 13",52,"www.yourdomainname.com","/","path1-15chr13",13,"/","path2-15chr13",13,"www.yourdomainname.com/path1-15chr13/path2-15chr13"]
[null,null,null,null,null,null,null,null,null,"Campaign Name 14","Ad Group 14","Keyword 14","Headline Line I 35 chr 14",25,"Headline Line II 35 chr 14",26,"Description Line. Upto 80 characters allowed now. 14",52,"www.yourdomainname.com","/","path1-15chr14",13,"/","path2-15chr14",13,"www.yourdomainname.com/path1-15chr14/path2-15chr14"]
[null,null,null,null,null,null,null,null,null,"Campaign Name 15","Ad Group 15","Keyword 15","Headline Line I 35 chr 15",25,"Headline Line II 35 chr 15",26,"Description Line. Upto 80 characters allowed now. 15",52,"www.yourdomainname.com","/","path1-15chr15",13,"/","path2-15chr15",13,"www.yourdomainname.com/path1-15chr15/path2-15chr15"]
[null,null,null,null,null,null,null,null,null,"Campaign Name 16","Ad Group 16","Keyword 16","Headline Line I 35 chr 16",25,"Headline Line II 35 chr 16",26,"Description Line. Upto 80 characters allowed now. 16",52,"www.yourdomainname.com","/","path1-15chr16",13,"/","path2-15chr16",13,"www.yourdomainname.com/path1-15chr16/path2-15chr16"]